[Event "*** Titled Tuesday Blitz"]
[Site "Chess.com"]
[Date "2020.11.24"]
[Round "10"]
[White "Ural_bogatyr"]
[Black "davidkalashian"]
[Result "1/2-1/2"]
[WhiteElo "2414"]
[BlackElo "2531"]
[TimeControl "180+1"]
[EndTime "12:14:17 PST"]
[Termination "Game drawn by repetition"]

1. e4 {[%clk 0:02:56.5]} 1... c5 {[%clk 0:02:59.3]} 2. Nf3 {[%clk 0:02:53.6]}
2... d6 {[%clk 0:02:59.2]} 3. d4 {[%clk 0:02:53.5]} 3... cxd4 {[%clk 0:02:58.1]}
4. Qxd4 {[%clk 0:02:54.4]} 4... Nc6 {[%clk 0:02:57.5]} 5. Bb5 {[%clk 0:02:54.6]}
5... Bd7 {[%clk 0:02:58.1]} 6. Bxc6 {[%clk 0:02:54.7]} 6... Bxc6 {[%clk
0:02:59]} 7. Nc3 {[%clk 0:02:54.9]} 7... Nf6 {[%clk 0:02:59.4]} 8. Bg5 {[%clk
0:02:55.2]} 8... e6 {[%clk 0:02:59.8]} 9. O-O-O {[%clk 0:02:55]} 9... Be7 {[%clk
0:03:00.4]} 10. Qd3 {[%clk 0:02:55.1]} 10... O-O {[%clk 0:02:56.5]} 11. Nd4
{[%clk 0:02:53.7]} 11... Rc8 {[%clk 0:02:55.4]} 12. f4 {[%clk 0:02:52.3]} 12...
Qa5 {[%clk 0:02:50.7]} 13. Kb1 {[%clk 0:02:51.3]} 13... h6 {[%clk 0:02:46.3]}
14. h4 {[%clk 0:02:50.2]} 14... Rfe8 {[%clk 0:02:37.8]} 15. f5 {[%clk 0:02:47]}
15... e5 {[%clk 0:02:34.6]} 16. Nb3 {[%clk 0:02:32.8]} 16... Qc7 {[%clk
0:02:33.4]} 17. Bxf6 {[%clk 0:02:22.3]} 17... Bxf6 {[%clk 0:02:13.1]} 18. Qxd6
{[%clk 0:02:21.6]} 18... Qxd6 {[%clk 0:02:13.1]} 19. Rxd6 {[%clk 0:02:22.5]}
19... Be7 {[%clk 0:02:13.6]} 20. Rd3 {[%clk 0:02:18.8]} 20... Red8 {[%clk
0:02:13.2]} 21. Nd5 {[%clk 0:02:08]} 21... Bxd5 {[%clk 0:02:11.7]} 22. Rxd5
{[%clk 0:02:07.1]} 22... Rxd5 {[%clk 0:02:03.7]} 23. exd5 {[%clk 0:02:08]} 23...
b5 {[%clk 0:02:04.4]} 24. g3 {[%clk 0:02:06.4]} 24... Bd6 {[%clk 0:02:01.3]} 25.
Nd2 {[%clk 0:02:05]} 25... Rc5 {[%clk 0:01:59.3]} 26. c3 {[%clk 0:01:42.6]}
26... Rxd5 {[%clk 0:01:55.6]} 27. Kc2 {[%clk 0:01:43]} 27... Be7 {[%clk
0:01:40.2]} 28. Ne4 {[%clk 0:01:41.1]} 28... h5 {[%clk 0:01:31.7]} 29. Rd1
{[%clk 0:01:29.7]} 29... Rxd1 {[%clk 0:01:28.4]} 30. Kxd1 {[%clk 0:01:30.6]}
30... g6 {[%clk 0:01:28.2]} 31. fxg6 {[%clk 0:01:30]} 31... f5 {[%clk
0:01:27.6]} 32. Nf2 {[%clk 0:01:20.6]} 32... Kg7 {[%clk 0:01:21.6]} 33. Nd3
{[%clk 0:01:19.6]} 33... Bd6 {[%clk 0:01:21]} 34. Ke2 {[%clk 0:01:19.2]} 34...
e4 {[%clk 0:01:16.8]} 35. Nf4 {[%clk 0:01:13.3]} 35... Bxf4 {[%clk 0:01:15.3]}
36. gxf4 {[%clk 0:01:14.2]} 36... Kxg6 {[%clk 0:01:15.7]} 37. Ke3 {[%clk
0:01:14.3]} 37... Kf6 {[%clk 0:01:14.1]} 38. Kd4 {[%clk 0:01:14]} 38... Ke6
{[%clk 0:01:12.4]} 39. b3 {[%clk 0:01:05.2]} 39... Kd6 {[%clk 0:01:11.3]} 40.
Ke3 {[%clk 0:00:56.9]} 40... Kd5 {[%clk 0:01:10.4]} 41. Ke2 {[%clk 0:00:55.7]}
41... a5 {[%clk 0:01:09.7]} 42. Ke3 {[%clk 0:00:55.9]} 42... Kc5 {[%clk
0:01:08.2]} 43. Ke2 {[%clk 0:00:55.7]} 43... b4 {[%clk 0:01:03.1]} 44. c4 {[%clk
0:00:54.9]} 44... Kd4 {[%clk 0:01:01.4]} 45. Kd2 {[%clk 0:00:55]} 45... a4
{[%clk 0:00:43.9]} 46. Ke2 {[%clk 0:00:51.6]} 46... a3 {[%clk 0:00:38.8]} 47.
Kd2 {[%clk 0:00:51.1]} 47... Kc5 {[%clk 0:00:08]} 48. Ke3 {[%clk 0:00:51.1]}
48... Kc6 {[%clk 0:00:08.1]} 49. Kd2 {[%clk 0:00:51.2]} 49... Kd6 {[%clk
0:00:09]} 50. Ke2 {[%clk 0:00:51.1]} 50... Kc6 {[%clk 0:00:08.6]} 51. Kd2 {[%clk
0:00:51.3]} 51... Kb6 {[%clk 0:00:08.5]} 52. Ke2 {[%clk 0:00:51.3]} 52... Kc5
{[%clk 0:00:09.4]} 53. Ke3 {[%clk 0:00:51.1]} 53... Kd6 {[%clk 0:00:09.8]} 54.
Ke2 {[%clk 0:00:51.4]} 54... Kd7 {[%clk 0:00:10.7]} 55. Kd2 {[%clk 0:00:51.3]}
55... Kc7 {[%clk 0:00:11.6]} 56. Ke2 {[%clk 0:00:51.8]} 56... Kb7 {[%clk
0:00:12]} 57. Kd2 {[%clk 0:00:52.7]} 57... Kb6 {[%clk 0:00:12.2]} 58. Ke2 {[%clk
0:00:53.6]} 58... Kc6 {[%clk 0:00:12.2]} 59. Kd2 {[%clk 0:00:53]} 1/2-1/2

[Event "*** Titled Tuesday Blitz"]
[Site "Chess.com"]
[Date "2020.11.24"]
[Round "10"]
[White "ChessicallyInclined"]
[Black "Vuk2000"]
[Result "1-0"]
[WhiteElo "2563"]
[BlackElo "2715"]
[TimeControl "180+1"]
[EndTime "12:14:21 PST"]
[Termination "ChessicallyInclined won by resignation"]

1. d4 {[%clk 0:03:00.9]} 1... Nf6 {[%clk 0:02:57]} 2. c4 {[%clk 0:02:59.9]} 2...
e6 {[%clk 0:02:57.5]} 3. Nc3 {[%clk 0:02:59]} 3... Bb4 {[%clk 0:02:57.8]} 4. e3
{[%clk 0:02:56.4]} 4... O-O {[%clk 0:02:57]} 5. Ne2 {[%clk 0:02:56.6]} 5... d5
{[%clk 0:02:56.6]} 6. a3 {[%clk 0:02:54]} 6... Be7 {[%clk 0:02:56.4]} 7. cxd5
{[%clk 0:02:53.9]} 7... exd5 {[%clk 0:02:56.5]} 8. Nf4 {[%clk 0:02:54.1]} 8...
a5 {[%clk 0:02:56.8]} 9. Bd3 {[%clk 0:02:53.9]} 9... b6 {[%clk 0:02:55]} 10. O-O
{[%clk 0:02:53.8]} 10... Ba6 {[%clk 0:02:55]} 11. Bxa6 {[%clk 0:02:51.3]} 11...
Nxa6 {[%clk 0:02:54.8]} 12. Qf3 {[%clk 0:02:47.3]} 12... c6 {[%clk 0:02:51.4]}
13. Bd2 {[%clk 0:02:46.2]} 13... Bd6 {[%clk 0:02:42.3]} 14. Nd3 {[%clk
0:02:37.9]} 14... Re8 {[%clk 0:02:39.4]} 15. Rfd1 {[%clk 0:02:33.7]} 15... Ne4
{[%clk 0:02:36.1]} 16. Be1 {[%clk 0:02:32.2]} 16... b5 {[%clk 0:02:24.5]} 17.
Rac1 {[%clk 0:02:12.9]} 17... Qe7 {[%clk 0:01:55.7]} 18. Ne2 {[%clk 0:02:05.7]}
18... Qc7 {[%clk 0:01:47.6]} 19. g3 {[%clk 0:01:51.9]} 19... b4 {[%clk
0:01:36.4]} 20. a4 {[%clk 0:01:40.3]} 20... b3 {[%clk 0:01:35.4]} 21. Nef4
{[%clk 0:01:36.1]} 21... Qb6 {[%clk 0:01:08.1]} 22. Bc3 {[%clk 0:01:17.5]} 22...
Nb4 {[%clk 0:00:56.9]} 23. Nc5 {[%clk 0:01:10.5]} 23... Bxc5 {[%clk 0:00:42.5]}
24. dxc5 {[%clk 0:01:11.4]} 24... Qc7 {[%clk 0:00:39.9]} 25. Bd4 {[%clk
0:00:58.2]} 25... Nc2 {[%clk 0:00:30]} 26. Rd3 {[%clk 0:00:49.8]} 26... Rab8
{[%clk 0:00:28.9]} 27. Nh5 {[%clk 0:00:43.2]} 27... f6 {[%clk 0:00:25.5]} 28.
Qg4 {[%clk 0:00:35.4]} 28... Qf7 {[%clk 0:00:22.4]} 29. f3 {[%clk 0:00:28.1]}
29... Nxd4 {[%clk 0:00:19.4]} 30. exd4 {[%clk 0:00:26.5]} 30... Ng5 {[%clk
0:00:17.2]} 31. Nf4 {[%clk 0:00:19.1]} 31... Re7 {[%clk 0:00:14.6]} 32. h4
{[%clk 0:00:16.8]} 32... Ne6 {[%clk 0:00:14.7]} 33. Nxe6 {[%clk 0:00:16]} 33...
Rxe6 {[%clk 0:00:15.2]} 34. Kf2 {[%clk 0:00:10.3]} 34... Rb4 {[%clk 0:00:14.5]}
35. Rcc3 {[%clk 0:00:08]} 35... Qe7 {[%clk 0:00:13.6]} 36. Re3 {[%clk
0:00:07.6]} 36... Kf7 {[%clk 0:00:08.7]} 37. Qh5+ {[%clk 0:00:07.5]} 37... g6
{[%clk 0:00:05.3]} 38. Qxh7+ {[%clk 0:00:07.4]} 38... Ke8 {[%clk 0:00:05.4]} 39.
Qxg6+ {[%clk 0:00:07.8]} 39... Kd7 {[%clk 0:00:05.8]} 40. Rxe6 {[%clk
0:00:06.3]} 40... Qxe6 {[%clk 0:00:05.9]} 41. Re3 {[%clk 0:00:06.4]} 41... Rxd4
{[%clk 0:00:05.4]} 42. Rxe6 {[%clk 0:00:06.4]} 42... Kxe6 {[%clk 0:00:06.3]} 43.
Qg8+ {[%clk 0:00:06.6]} 43... Kd7 {[%clk 0:00:06.1]} 44. Qf7+ {[%clk 0:00:06.7]}
44... Kc8 {[%clk 0:00:06.6]} 45. Qxf6 {[%clk 0:00:07]} 45... Rd2+ {[%clk
0:00:05.2]} 46. Ke3 {[%clk 0:00:07.5]} 1-0

[Event "*** Titled Tuesday Blitz"]
[Site "Chess.com"]
[Date "2020.11.24"]
[Round "10"]
[White "vovachesss"]
[Black "woodhy"]
[Result "1-0"]
[WhiteElo "2664"]
[BlackElo "2459"]
[TimeControl "180+1"]
[EndTime "12:14:24 PST"]
[Termination "vovachesss won by resignation"]

1. e4 {[%clk 0:03:00.9]} 1... e6 {[%clk 0:02:59.5]} 2. Qe2 {[%clk 0:03:00.9]}
2... Be7 {[%clk 0:02:58.8]} 3. Nf3 {[%clk 0:03:00.9]} 3... Nf6 {[%clk
0:02:58.1]} 4. e5 {[%clk 0:03:00.6]} 4... Nd5 {[%clk 0:02:58.1]} 5. g3 {[%clk
0:03:00.1]} 5... c5 {[%clk 0:02:58]} 6. Bg2 {[%clk 0:03:00.5]} 6... Nc6 {[%clk
0:02:57.6]} 7. O-O {[%clk 0:03:01.1]} 7... b6 {[%clk 0:02:56.5]} 8. c3 {[%clk
0:03:01.7]} 8... Bb7 {[%clk 0:02:55.3]} 9. d4 {[%clk 0:03:02.1]} 9... cxd4
{[%clk 0:02:54.8]} 10. cxd4 {[%clk 0:03:02.8]} 10... Ncb4 {[%clk 0:02:54.2]} 11.
Rd1 {[%clk 0:02:49.6]} 11... Rc8 {[%clk 0:02:53.2]} 12. a3 {[%clk 0:01:58.7]}
12... Ba6 {[%clk 0:02:48.5]} 13. Qe4 {[%clk 0:01:58.9]} 13... f5 {[%clk
0:01:34]} 14. exf6 {[%clk 0:01:47.7]} 14... Nxf6 {[%clk 0:01:34.1]} 15. Qh4
{[%clk 0:01:30.9]} 15... Be2 {[%clk 0:01:18]} 16. Re1 {[%clk 0:00:56.7]} 16...
Bxf3 {[%clk 0:01:12.9]} 17. axb4 {[%clk 0:00:53.1]} 17... Bxg2 {[%clk
0:01:10.2]} 18. Kxg2 {[%clk 0:00:54]} 18... O-O {[%clk 0:01:08.5]} 19. Rxa7
{[%clk 0:00:49.6]} 19... Nd5 {[%clk 0:01:07.2]} 20. Qe4 {[%clk 0:00:44.4]} 20...
Bxb4 {[%clk 0:01:04.2]} 21. Bd2 {[%clk 0:00:41.7]} 21... Bxd2 {[%clk 0:00:58.3]}
22. Nxd2 {[%clk 0:00:41.9]} 22... Qf6 {[%clk 0:00:58]} 23. Nf3 {[%clk 0:00:39]}
23... Rc7 {[%clk 0:00:58.2]} 24. Rxc7 {[%clk 0:00:29.6]} 24... Nxc7 {[%clk
0:00:59.1]} 25. Re2 {[%clk 0:00:30.2]} 25... Nd5 {[%clk 0:00:58.1]} 26. Ne5
{[%clk 0:00:30.9]} 26... Rd8 {[%clk 0:00:41.3]} 27. Rc2 {[%clk 0:00:26.9]} 27...
h6 {[%clk 0:00:35.5]} 28. h4 {[%clk 0:00:26.4]} 28... b5 {[%clk 0:00:31.6]} 29.
h5 {[%clk 0:00:23.7]} 29... b4 {[%clk 0:00:31.3]} 30. Ng6 {[%clk 0:00:23.5]}
30... Qg5 {[%clk 0:00:21]} 31. Rc5 {[%clk 0:00:19]} 31... Qxh5 {[%clk
0:00:20.3]} 32. Ne7+ {[%clk 0:00:17.5]} 32... Kh8 {[%clk 0:00:17]} 33. Nxd5
{[%clk 0:00:17.5]} 33... exd5 {[%clk 0:00:16.8]} 34. Rxd5 {[%clk 0:00:18.2]}
34... Qf7 {[%clk 0:00:17.2]} 35. Rf5 {[%clk 0:00:16]} 35... Qe6 {[%clk
0:00:16.3]} 36. Re5 {[%clk 0:00:15.9]} 36... Qf7 {[%clk 0:00:15.4]} 37. Re7
{[%clk 0:00:15.7]} 37... Qf6 {[%clk 0:00:14.6]} 38. b3 {[%clk 0:00:15.1]} 38...
d5 {[%clk 0:00:13.7]} 39. Qe5 {[%clk 0:00:13.3]} 39... Qxe5 {[%clk 0:00:13.6]}
40. dxe5 {[%clk 0:00:14.2]} 40... d4 {[%clk 0:00:13]} 41. Kf1 {[%clk 0:00:14.9]}
41... d3 {[%clk 0:00:13.3]} 42. Ke1 {[%clk 0:00:15.3]} 42... d2+ {[%clk
0:00:13.9]} 43. Kd1 {[%clk 0:00:16.1]} 43... Rd3 {[%clk 0:00:13.4]} 44. e6
{[%clk 0:00:13.6]} 44... Kh7 {[%clk 0:00:09.2]} 45. Rd7 {[%clk 0:00:12]} 45...
Rc3 {[%clk 0:00:05.5]} 46. e7 {[%clk 0:00:11.3]} 46... Rc1+ {[%clk 0:00:05.7]}
47. Kxd2 {[%clk 0:00:11.8]} 47... Rc8 {[%clk 0:00:05.6]} 48. Rd8 {[%clk
0:00:12.5]} 48... Rc5 {[%clk 0:00:05.9]} 49. e8=Q {[%clk 0:00:12.8]} 1-0

[Event "*** Titled Tuesday Blitz"]
[Site "Chess.com"]
[Date "2020.11.24"]
[Round "10"]
[White "bazar-wokzal"]
[Black "Zarikovs1999"]
[Result "1-0"]
[WhiteElo "2530"]
[BlackElo "2392"]
[TimeControl "180+1"]
[EndTime "12:14:24 PST"]
[Termination "bazar-wokzal won by resignation"]

1. e4 {[%clk 0:02:59.6]} 1... c5 {[%clk 0:02:55.4]} 2. c3 {[%clk 0:02:59.4]}
2... Nf6 {[%clk 0:02:56]} 3. e5 {[%clk 0:02:59.3]} 3... Nd5 {[%clk 0:02:56.6]}
4. d4 {[%clk 0:02:59.8]} 4... cxd4 {[%clk 0:02:57.5]} 5. cxd4 {[%clk 0:03:00.7]}
5... d6 {[%clk 0:02:53.8]} 6. Bc4 {[%clk 0:02:59.2]} 6... Nb6 {[%clk 0:02:49.1]}
7. Bb3 {[%clk 0:02:59.2]} 7... dxe5 {[%clk 0:02:48.8]} 8. Qh5 {[%clk 0:02:58.8]}
8... e6 {[%clk 0:02:48.6]} 9. dxe5 {[%clk 0:02:58.7]} 9... Nc6 {[%clk
0:02:49.2]} 10. Nc3 {[%clk 0:02:58.3]} 10... g6 {[%clk 0:02:41.5]} 11. Qg5
{[%clk 0:02:57.5]} 11... Qxg5 {[%clk 0:02:42]} 12. Bxg5 {[%clk 0:02:56.9]} 12...
Be7 {[%clk 0:02:42.5]} 13. Bxe7 {[%clk 0:02:53.3]} 13... Kxe7 {[%clk 0:02:43.4]}
14. f4 {[%clk 0:02:53.1]} 14... g5 {[%clk 0:02:39.1]} 15. fxg5 {[%clk
0:02:48.6]} 15... Nxe5 {[%clk 0:02:34.3]} 16. O-O-O {[%clk 0:02:48.1]} 16... h6
{[%clk 0:02:34.9]} 17. gxh6 {[%clk 0:02:45.6]} 17... Rxh6 {[%clk 0:02:35.8]} 18.
Nge2 {[%clk 0:02:34.3]} 18... Bd7 {[%clk 0:02:35.1]} 19. Nd4 {[%clk 0:02:33.6]}
19... Ng4 {[%clk 0:02:29.6]} 20. Rde1 {[%clk 0:01:36.1]} 20... Rxh2 {[%clk
0:02:12.8]} 21. Rxh2 {[%clk 0:01:32.9]} 21... Nxh2 {[%clk 0:02:13.7]} 22. Bd1
{[%clk 0:01:24.9]} 22... Rg8 {[%clk 0:02:06.3]} 23. Nf5+ {[%clk 0:01:19.2]}
23... Kf6 {[%clk 0:02:01.4]} 24. Ne3 {[%clk 0:01:18.6]} 24... e5 {[%clk
0:01:44.3]} 25. Rh1 {[%clk 0:00:35.5]} 25... Ng4 {[%clk 0:01:38.8]} 26. Bxg4
{[%clk 0:00:35.2]} 26... Bxg4 {[%clk 0:01:39.5]} 27. Rh6+ {[%clk 0:00:35.4]}
27... Kg5 {[%clk 0:01:07.5]} 28. Nxg4 {[%clk 0:00:25.2]} 28... Kxg4 {[%clk
0:01:07.4]} 29. Rh7 {[%clk 0:00:22.8]} 29... Rf8 {[%clk 0:00:41.4]} 30. Nb5
{[%clk 0:00:20.2]} 30... f5 {[%clk 0:00:36.2]} 31. Rxb7 {[%clk 0:00:17.7]} 31...
f4 {[%clk 0:00:36.7]} 32. Nxa7 {[%clk 0:00:12.6]} 32... Kg3 {[%clk 0:00:37.1]}
33. Rxb6 {[%clk 0:00:11.8]} 33... Kxg2 {[%clk 0:00:37.6]} 34. Rg6+ {[%clk
0:00:11.6]} 34... Kf3 {[%clk 0:00:34]} 35. Nc6 {[%clk 0:00:07.1]} 35... e4
{[%clk 0:00:25.1]} 36. Ne5+ {[%clk 0:00:06.7]} 36... Ke2 {[%clk 0:00:25.5]} 37.
Rg4 {[%clk 0:00:05.3]} 37... Rf5 {[%clk 0:00:20.4]} 38. Ng6 {[%clk 0:00:04.2]}
38... f3 {[%clk 0:00:04.9]} 39. Rxe4+ {[%clk 0:00:04.3]} 39... Kd3 {[%clk
0:00:05.6]} 40. Rf4 {[%clk 0:00:04.7]} 40... Rxf4 {[%clk 0:00:02.6]} 41. Nxf4+
{[%clk 0:00:04.4]} 41... Ke3 {[%clk 0:00:03.2]} 42. Nh3 {[%clk 0:00:05.2]} 42...
Ke2 {[%clk 0:00:02.7]} 43. b4 {[%clk 0:00:05.3]} 43... Kf1 {[%clk 0:00:02.9]}
44. b5 {[%clk 0:00:05.7]} 44... Kg2 {[%clk 0:00:03.8]} 45. Nf4+ {[%clk
0:00:05.8]} 45... Kg3 {[%clk 0:00:04.4]} 46. Nd3 {[%clk 0:00:06.2]} 1-0

[Event "*** Titled Tuesday Blitz"]
[Site "Chess.com"]
[Date "2020.11.24"]
[Round "10"]
[White "MasterMK73"]
[Black "Road2GM3000"]
[Result "0-1"]
[WhiteElo "2252"]
[BlackElo "2045"]
[TimeControl "180+1"]
[EndTime "12:14:28 PST"]
[Termination "Road2GM3000 won on time"]

1. e4 {[%clk 0:03:00.9]} 1... c5 {[%clk 0:02:59.9]} 2. Nf3 {[%clk 0:02:59.6]}
2... d6 {[%clk 0:03:00.1]} 3. Bb5+ {[%clk 0:02:58.5]} 3... Nd7 {[%clk
0:02:59.9]} 4. O-O {[%clk 0:02:57.4]} 4... a6 {[%clk 0:03:00.4]} 5. Bd3 {[%clk
0:02:56.7]} 5... b5 {[%clk 0:02:59.9]} 6. c4 {[%clk 0:02:56.6]} 6... Rb8 {[%clk
0:02:49.7]} 7. Re1 {[%clk 0:02:54.3]} 7... Ngf6 {[%clk 0:02:47.3]} 8. Nc3 {[%clk
0:02:51.3]} 8... b4 {[%clk 0:02:44.3]} 9. Nd5 {[%clk 0:02:50.7]} 9... Nxd5
{[%clk 0:02:43.4]} 10. exd5 {[%clk 0:02:50]} 10... g6 {[%clk 0:02:42.3]} 11. Bc2
{[%clk 0:02:45.5]} 11... Bg7 {[%clk 0:02:42.6]} 12. d4 {[%clk 0:02:45.5]} 12...
O-O {[%clk 0:02:40.2]} 13. Bg5 {[%clk 0:02:44.3]} 13... Re8 {[%clk 0:02:34.6]}
14. Qd2 {[%clk 0:02:40.2]} 14... a5 {[%clk 0:02:21.1]} 15. Re2 {[%clk
0:02:35.2]} 15... Ba6 {[%clk 0:02:12.8]} 16. b3 {[%clk 0:02:22.7]} 16... cxd4
{[%clk 0:02:12.6]} 17. Rae1 {[%clk 0:02:11.1]} 17... Be5 {[%clk 0:01:57]} 18.
Nxd4 {[%clk 0:02:05.9]} 18... Bb7 {[%clk 0:01:40.7]} 19. Nc6 {[%clk 0:01:30.8]}
19... Bxc6 {[%clk 0:01:36.9]} 20. dxc6 {[%clk 0:01:30.9]} 20... Nc5 {[%clk
0:01:32.7]} 21. f4 {[%clk 0:01:28.2]} 21... Bc3 {[%clk 0:01:28.4]} 22. Qd1
{[%clk 0:01:21.9]} 22... Bxe1 {[%clk 0:01:25.7]} 23. Qxe1 {[%clk 0:01:22]} 23...
f6 {[%clk 0:01:25.6]} 24. Bh6 {[%clk 0:01:16.6]} 24... Qb6 {[%clk 0:01:22.4]}
25. Kh1 {[%clk 0:01:15.1]} 25... e5 {[%clk 0:01:17.9]} 26. f5 {[%clk 0:01:12.2]}
26... g5 {[%clk 0:01:05.9]} 27. Qg3 {[%clk 0:01:08.7]} 27... Qc7 {[%clk
0:00:55.5]} 28. h4 {[%clk 0:01:05.5]} 28... g4 {[%clk 0:00:39.6]} 29. Qxg4+
{[%clk 0:00:44.8]} 29... Kh8 {[%clk 0:00:38.8]} 30. h5 {[%clk 0:00:44.9]} 30...
Rg8 {[%clk 0:00:36.3]} 31. Qh4 {[%clk 0:00:45.6]} 31... Qf7 {[%clk 0:00:28.7]}
32. Re3 {[%clk 0:00:36.6]} 32... Rbc8 {[%clk 0:00:27]} 33. Rh3 {[%clk
0:00:17.1]} 33... Rxc6 {[%clk 0:00:22.4]} 34. g4 {[%clk 0:00:17.2]} 34... Qe7
{[%clk 0:00:17.4]} 35. Rg3 {[%clk 0:00:15.9]} 35... Rcc8 {[%clk 0:00:16.1]} 36.
g5 {[%clk 0:00:15.5]} 36... fxg5 {[%clk 0:00:16.3]} 37. Bxg5 {[%clk 0:00:14.1]}
37... Rxg5 {[%clk 0:00:15.7]} 38. Rxg5 {[%clk 0:00:13.5]} 38... Rf8 {[%clk
0:00:13.1]} 39. h6 {[%clk 0:00:11.3]} 39... Qf6 {[%clk 0:00:11.6]} 40. Qh5
{[%clk 0:00:09.4]} 40... Ne6 {[%clk 0:00:06.3]} 41. fxe6 {[%clk 0:00:06.9]}
41... Qxe6 {[%clk 0:00:05.9]} 42. Rg1 {[%clk 0:00:05.1]} 42... Qf6 {[%clk
0:00:05.8]} 43. Qh3 {[%clk 0:00:04.2]} 43... Qf4 {[%clk 0:00:05.5]} 44. Qh2
{[%clk 0:00:02.5]} 44... e4 {[%clk 0:00:04.4]} 45. Qxf4 {[%clk 0:00:02.1]} 45...
Rxf4 {[%clk 0:00:05.3]} 46. Re1 {[%clk 0:00:02.6]} 46... Rh4+ {[%clk 0:00:05.9]}
47. Kg2 {[%clk 0:00:02.5]} 47... Rxh6 {[%clk 0:00:06.2]} 48. Rxe4 {[%clk
0:00:01.5]} 48... Kg7 {[%clk 0:00:06.9]} 0-1

[Event "*** Titled Tuesday Blitz"]
[Site "Chess.com"]
[Date "2020.11.24"]
[Round "10"]
[White "Roman_Ovetchkin"]
[Black "kuban1991"]
[Result "1/2-1/2"]
[WhiteElo "2658"]
[BlackElo "2882"]
[TimeControl "180+1"]
[EndTime "12:14:29 PST"]
[Termination "Game drawn by repetition"]

1. d4 {[%clk 0:03:00.9]} 1... g6 {[%clk 0:03:00.2]} 2. e4 {[%clk 0:03:00.1]}
2... Bg7 {[%clk 0:03:00.5]} 3. Nc3 {[%clk 0:02:59.7]} 3... c6 {[%clk 0:03:01]}
4. f4 {[%clk 0:02:56.5]} 4... d5 {[%clk 0:03:01.2]} 5. e5 {[%clk 0:02:56.6]}
5... Nh6 {[%clk 0:03:01.3]} 6. Nf3 {[%clk 0:02:53.7]} 6... f6 {[%clk 0:03:01.3]}
7. h3 {[%clk 0:02:47]} 7... O-O {[%clk 0:03:00.1]} 8. Be3 {[%clk 0:02:45.4]}
8... fxe5 {[%clk 0:02:56.5]} 9. fxe5 {[%clk 0:02:41.2]} 9... e6 {[%clk
0:02:48.8]} 10. Qd2 {[%clk 0:02:21.1]} 10... Nf7 {[%clk 0:02:39.5]} 11. Nd1
{[%clk 0:02:10.2]} 11... c5 {[%clk 0:02:39.7]} 12. c3 {[%clk 0:02:10.1]} 12...
Nc6 {[%clk 0:02:40.3]} 13. Be2 {[%clk 0:02:04]} 13... Qa5 {[%clk 0:02:31.3]} 14.
a3 {[%clk 0:01:55.7]} 14... cxd4 {[%clk 0:02:31]} 15. cxd4 {[%clk 0:01:54.8]}
15... Qxd2+ {[%clk 0:02:31.4]} 16. Nxd2 {[%clk 0:01:52.9]} 16... Bd7 {[%clk
0:02:28]} 17. b4 {[%clk 0:01:40.3]} 17... Rac8 {[%clk 0:02:28]} 18. Nb3 {[%clk
0:01:32.9]} 18... b6 {[%clk 0:02:21]} 19. g4 {[%clk 0:01:16.6]} 19... Ne7 {[%clk
0:02:15.9]} 20. Kd2 {[%clk 0:01:00.7]} 20... Ba4 {[%clk 0:02:14.4]} 21. Rb1
{[%clk 0:01:00.7]} 21... g5 {[%clk 0:02:04.6]} 22. Nc3 {[%clk 0:00:59.3]} 22...
Bd7 {[%clk 0:01:57.3]} 23. Ba6 {[%clk 0:00:54.6]} 23... Rcd8 {[%clk 0:01:49.4]}
24. Nb5 {[%clk 0:00:42]} 24... Ng6 {[%clk 0:01:47.5]} 25. Rbc1 {[%clk
0:00:39.8]} 25... Nfxe5 {[%clk 0:01:42.6]} 26. dxe5 {[%clk 0:00:38.1]} 26...
Nxe5 {[%clk 0:01:43.2]} 27. Ke2 {[%clk 0:00:20]} 27... h6 {[%clk 0:01:29.6]} 28.
Nxa7 {[%clk 0:00:17.3]} 28... Nc4 {[%clk 0:00:37]} 29. Bxc4 {[%clk 0:00:16.2]}
29... dxc4 {[%clk 0:00:37.9]} 30. Rxc4 {[%clk 0:00:15.7]} 30... e5 {[%clk
0:00:35.1]} 31. Rc7 {[%clk 0:00:14.9]} 31... Ba4 {[%clk 0:00:29.7]} 32. Nd2
{[%clk 0:00:14.5]} 32... Rd6 {[%clk 0:00:17.2]} 33. Rhc1 {[%clk 0:00:13.5]}
33... e4 {[%clk 0:00:14.2]} 34. Rb7 {[%clk 0:00:11.7]} 34... Bd4 {[%clk
0:00:12]} 35. Rcc7 {[%clk 0:00:09.8]} 35... Rfd8 {[%clk 0:00:08.6]} 36. Bxd4
{[%clk 0:00:06.8]} 36... Rxd4 {[%clk 0:00:09.5]} 37. Nf1 {[%clk 0:00:06.9]}
37... Bd1+ {[%clk 0:00:08.1]} 38. Ke1 {[%clk 0:00:05.9]} 38... Bf3 {[%clk
0:00:08.1]} 39. Rg7+ {[%clk 0:00:06.2]} 39... Kf8 {[%clk 0:00:08]} 40. Rh7
{[%clk 0:00:05.8]} 40... Kg8 {[%clk 0:00:06.6]} 41. Ne3 {[%clk 0:00:05.6]} 41...
Rd2 {[%clk 0:00:04.9]} 42. Rbg7+ {[%clk 0:00:03.9]} 42... Kf8 {[%clk 0:00:05.2]}
43. Rf7+ {[%clk 0:00:03.7]} 43... Kg8 {[%clk 0:00:05.8]} 44. Rhg7+ {[%clk
0:00:03.7]} 44... Kh8 {[%clk 0:00:06.1]} 45. Rh7+ {[%clk 0:00:04.6]} 45... Kg8
{[%clk 0:00:06.6]} 46. Rhg7+ {[%clk 0:00:05.5]} 46... Kh8 {[%clk 0:00:06.9]} 47.
Rh7+ {[%clk 0:00:06.4]} 47... Kg8 {[%clk 0:00:07.1]} 1/2-1/2